[Event "Swiss Championship U14 2022"]
[Site "Biel"]
[Date "2022.07.20"]
[Round "6.4"]
[White "Delangle, Alexander"]
[Black "Gut, Lionel"]
[Result "0-1"]
[ECO "B50"]
[WhiteElo "1612"]
[BlackElo "1957"]
[Annotator "TA"]
[PlyCount "102"]
[EventDate "2022.07.18"]
[EventType "swiss"]
[EventCountry "SUI"]
[SourceTitle "playchess.com"]
[Source "ChessBase"]
[SourceQuality "1"]
[TimeControl "5400+30"]

{[%evp 14,102,4,0,46,31,40,17,35,23,29,0,35,0,53,56,79,45,82,86,140,70,110,60,109,111,168,166,175,118,122,98,106,32,56,64,83,63,56,18,20,18,30,0,29,-20,0,0,0,-204,0,-319,-93,-93,-95,-91,-88,-92,-34,-148,-41,-72,-70,-126,-115,-335,-333,-563,-612,-587,-580,-662,-548,-720,-698,-1250,-1264,-1245,-1242,-29978,-29978,-29992,-29992,-29994,-29987,-29993,-6119,-29992,-29993,-29993,-29994]} 1. e4 {[%emt 0:00:01]} c5 {[%emt 0:00:07]} 2. Nf3 {[%emt 0:00:04]} d6 {[%emt 0:00:01]} 3. c3 {[%emt 0:00:03]} Nf6 {[%emt 0:00:04]} 4. h3 {[%emt 0:00:21]} Nc6 {[%emt 0:00:19]} 5. Bd3 {[%emt 0:00:17]} g6 {[%emt 0:00:28]} 6. Bc2 {[%emt 0:00:08]} Bg7 {[%emt 0:00:06]} 7. O-O {[%emt 0:01:06] 7.d4 gains popularity.} O-O {[%emt 0:00:12]} 8. d4 {[%emt 0:02:39]} Nd7 {[%emt 0:01:34] B50: Sicilian: 2...d6, Miscellaneous.} (8... cxd4 $11 {is superior.} 9. cxd4 e5) 9. Be3 {[%emt 0:00:46]} b6 {[%emt 0:04:38]} 10. Nbd2 {[%emt 0:03:53][%cal Bb1d2,Bd2f1,Bf1g3][%mdl 32]} Ba6 {[%emt 0:03:54] The position is equal.} 11. Re1 {[%emt 0:02:31]} Rc8 {[%emt 0:01:36]} 12. a3 {[%emt 0:06:17]} Qc7 {[%emt 0:07:18]} 13. Rc1 {[%emt 0:02:55] [#]} (13. d5 $5 {[%cal Rd5c6]} Nce5 14. Nxe5 Nxe5 15. Nf3 $11) 13... c4 $146 {[%emt 0:06:15]} (13... cxd4 $11 14. cxd4 e5) ({Predecessor:} 13... Qb8 14. Nf1 cxd4 15. cxd4 Na5 16. Bd3 Rxc1 17. Bxc1 Bxd3 18. Qxd3 Qc7 19. Bg5 Nf6 {1-0 (26) Brotkin,I-Smirnov,I (2496) Ukhta 2008}) 14. Nf1 $14 {[%emt 0:04:47]} e5 {[%emt 0:03:06]} 15. Ng3 {[%emt 0:08:38]} Ne7 {[%emt 0:03:00]} 16. Qd2 {[%emt 0:11:18]} exd4 {[%emt 0:02:44]} ({Black should try} 16... f6) 17. Nxd4 {[%emt 0:21:01]} ({Of course not} 17. Bxd4 $6 Ne5 $11) (17. cxd4 $16 b5 18. Bh6) 17... Ne5 {[%emt 0:00:31]} 18. Rcd1 {[%emt 0:08:37]} (18. Bh6 $16) 18... Rfe8 {[%emt 0:03:28]} (18... N7c6 $1 $14) 19. Bh6 $16 {[%emt 0:07:39]} Rcd8 {[%emt 0:32:37]} (19... Bf6 $16) 20. Bxg7 $18 {[%emt 0:00:00]} Kxg7 {[%emt 0:00:27] [#]} 21. Qg5 {[%emt 0:00:00]} (21. Ngf5+ $1 $18 {[%mdl 512]} gxf5 22. Qg5+ Kh8 23. Qf6+ Kg8 24. exf5) 21... Ng8 $16 {[%emt 0:08:24]} 22. Nh5+ {[%emt 0:00:00]} Kh8 {[%emt 0:07:12]} 23. f4 {[%emt 0:05:00]} (23. Nf4 $16) 23... gxh5 {[%emt 0:00:00]} 24. fxe5 {[%emt 0:00:00]} Rxe5 {[%emt 0:00:00]} 25. Nf5 {[%emt 0:00:00][%csl Gf5][%cal Rg5g7]} f6 {[%emt 0:01:04]} 26. Qxh5 {[%emt 0:00:00] With the idea Qh4.} Bc8 {[%emt 0:01:19]} 27. Rf1 {[%emt 0:00:00]} Qc5+ {[%emt 0:00:00]} 28. Kh1 {[%emt 0:00:00]} Bxf5 {[%emt 0:00:00]} 29. exf5 {[%emt 0:00:00]} (29. Rxf5 {might be stronger.} Qb5 30. Rxe5 fxe5 31. Qg5) 29... Rde8 {[%emt 0:06:20]} 30. Rd4 {[%emt 0:02:07]} Re1 {[%emt 0:00:53]} 31. Rdf4 {[%emt 0:01:10] [#]} (31. Kg1 $11 {and White is okay.}) 31... Qe3 $2 {[%emt 0:05:47]} (31... Qb5 $1 $19 {[%cal Rb5b2]} 32. Qh4 Rxf1+ 33. Rxf1 Qxb2) 32. Qg4 $2 {[%emt 0:02:21][%mdl 8192]} (32. Rxe1 $11 Qxe1+ 33. Kh2) 32... Rxf1+ $2 {[%emt 0:00:00]} (32... Qc1 $1 $19 33. Bd1 {[#]} R8e4 $3 {[%mdl 512]} 34. Rxe4 Rxf1+ 35. Kh2 Qxd1 36. Qxd1 Rxd1 37. Rxc4 Rd2) 33. Rxf1 $17 {[%emt 0:00:00]} Qe2 {[%emt 0:00:00]} 34. Qxe2 {[%emt 0:00:00]} Rxe2 {[%emt 0:00:00][%mdl 4096] Endgame KRB-KRN} 35. Rc1 {[%emt 0:00:58]} a6 {[%emt 0:00:22]} (35... Kg7 $17) 36. b3 {[%emt 0:00:00]} (36. Kg1 $15) 36... d5 {[%emt 0:00:00]} (36... Re3 $17 37. Rb1 Rxc3) 37. bxc4 {[%emt 0:00:00]} dxc4 {[%emt 0:00:00]} 38. a4 {[%emt 0:00:00]} (38. Kg1 $15) 38... Ne7 {[%emt 0:01:37]} 39. g4 $2 {[%emt 0:00:43]} (39. Kg1 $17) 39... Nd5 $19 {[%emt 0:00:00]} 40. Rd1 $2 {[%emt 0:00:00]} (40. Bb1 {keeps fighting.}) 40... Nxc3 {[%emt 0:00:00]} ({Not} 40... Rxc2 41. Rxd5 Rxc3 42. Rd6 $17) 41. Rd8+ {[%emt 0:00:00]} Kg7 {[%emt 0:00:00]} 42. Rd7+ {[%emt 0:00:00]} Kf8 {[%emt 0:00:00]} 43. Rd8+ {[%emt 0:00:00]} Ke7 {[%emt 0:00:00]} 44. Rh8 {[%emt 0:00:00]} Rxc2 {[%emt 0:00:00]} 45. Rxh7+ {[%emt 0:00:00] KRN-KR} Kd6 {[%emt 0:00:44] Threatens to win with ...Ne4.} 46. h4 {[%emt 0:00:18]} Ne4 {[%emt 0:00:00]} 47. h5 {[%emt 0:00:37]} c3 {[%emt 0:00:00]} 48. h6 {[%emt 0:00:00]} Nf2+ {[%emt 0:00:59]} 49. Kg1 {[%emt 0:00:46]} Nxg4 {[%emt 0:00:00]} (49... Nh3+ $142 50. Kh1 Ng5 51. Kg1 Nxh7 52. Kf1 Rh2 53. g5 c2 54. Kg1 Rd2 55. gxf6 c1=Q#) 50. Rd7+ {[%emt 0:00:00]} Kxd7 {[%emt 0:00:12]} 51. h7 {[%emt 0:00:00]} Rh2 {[%emt 0:00:29] Black used his chance.  Weighted Error Value: White=0.88/Black=0.54} 0-1

[Event "Swiss Championship U14 2022"]
[Site "Biel"]
[Date "2022.07.20"]
[Round "6.5"]
[White "Artan, Tamir"]
[Black "Rappazzo, Johannes"]
[Result "0-1"]
[ECO "B94"]
[WhiteElo "1590"]
[BlackElo "1761"]
[Annotator "NA RC COMBH"]
[PlyCount "80"]
[EventDate "2022.07.18"]
[EventType "swiss"]
[EventCountry "SUI"]
[SourceTitle "playchess.com"]
[Source "ChessBase"]
[SourceQuality "1"]
[TimeControl "5400+30"]

1. e4 {[%emt 0:00:02]} c5 {[%emt 0:00:03]} 2. Nf3 {[%emt 0:00:03]} d6 {[%emt 0:00:02]} 3. d4 {[%emt 0:00:07]} cxd4 {[%emt 0:00:02]} 4. Nxd4 {[%emt 0:00:12]} Nf6 {[%emt 0:00:03]} 5. Nc3 {[%emt 0:00:07]} a6 {[%emt 0:00:03]} 6. Bg5 {[%emt 0:00:12]} Nbd7 {[%emt 0:00:07]} 7. Bc4 {[%emt 0:00:13]} Qb6 {[%emt 0:00:37]} 8. Bb3 {[%emt 0:00:07]} e6 {[%emt 0:00:25]} 9. Qd2 {[%emt 0:00:24]} Be7 {[%emt 0:00:11]} 10. Be3 {[%emt 0:01:59]} Nc5 {[%emt 0:01:18]} 11. f3 {[%emt 0:08:09]} O-O {[%emt 0:01:55]} 12. O-O-O {[%emt 0:01:08]} Qc7 {[%emt 0:03:29]} 13. g4 {[%emt 0:00:53]} b5 {[%emt 0:00:54]} 14. h4 {[%emt 0:02:36]} b4 {[%emt 0:07:28]} 15. Na4 {[%emt 0:00:31]} Bd7 {[%emt 0:03:27]} 16. Nxc5 {[%emt 0:00:26]} dxc5 {[%emt 0:00:08]} 17. g5 {[%emt 0:05:04]} Nh5 {[%emt 0:03:48]} 18. Nf5 {[%emt 0:00:29]} Bb5 {[%emt 0:04:31]} 19. Nxe7+ {[%emt 0:01:57]} Qxe7 {[%emt 0:00:08]} 20. c4 {[%emt 0:00:29]} bxc3 {[%emt 0:00:13]} 21. Qxc3 {[%emt 0:00:13]} Ng3 {[%emt 0:09:13]} 22. Rh2 {[%emt 0:00:38]} Ne2+ {[%emt 0:00:49]} 23. Rxe2 {[%emt 0:00:07]} Bxe2 {[%emt 0:00:03]} 24. Re1 {[%emt 0:01:25]} c4 {[%emt 0:00:34]} 25. Bc2 {[%emt 0:03:21]} Bd3 {[%emt 0:02:20]} 26. Bxd3 {[%emt 0:01:07]} cxd3 {[%emt 0:00:05]} 27. Bc5 {[%emt 0:00:20]} d2+ {[%emt 0:00:08]} 28. Kxd2 {[%emt 0:00:11]} Rfd8+ {[%emt 0:00:17]} 29. Ke3 {[%emt 0:02:54]} Qc7 {[%emt 0:00:47]} 30. Bd4 {[%emt 0:01:35]} Qh2 {[%emt 0:01:22]} 31. Bxg7 {[%emt 0:01:11]} Rac8 {[%emt 0:00:07]} 32. Qa5 {[%emt 0:06:03]} Kxg7 {[%emt 0:00:11]} 33. Re2 {[%emt 0:01:02]} Qc7 {[%emt 0:01:13]} 34. Qa4 {[%emt 0:01:40]} Qc5+ {[%emt 0:01:17]} 35. Kf4 {[%emt 0:00:23]} e5+ {[%emt 0:00:14]} 36. Kg4 {[%emt 0:01:12]} Qg1+ {[%emt 0:00:36]} 37. Kh5 {[%emt 0:01:34]} Rd6 {[%emt 0:02:49]} 38. f4 {[%emt 0:04:27]} Rcc6 {[%emt 0:00:43]} 39. Qb3 {[%emt 0:03:06]} Rh6+ {[%emt 0:00:20]} 40. gxh6+ {[%emt 0:00:09]} Rxh6# {[%emt 0:00:02]} 0-1

[Event "Swiss Championship U14 2022"]
[Site "Biel"]
[Date "2022.07.20"]
[Round "6.6"]
[White "Bruessow, Nina"]
[Black "Scherler, Julius"]
[Result "0-1"]
[ECO "B16"]
[WhiteElo "1655"]
[BlackElo "1971"]
[Annotator "TA"]
[PlyCount "56"]
[EventDate "2022.07.18"]
[EventType "swiss"]
[EventCountry "SUI"]
[SourceTitle "playchess.com"]
[Source "ChessBase"]
[SourceQuality "1"]
[TimeControl "5400+30"]

{[%evp 15,56,63,66,55,64,54,68,54,64,35,42,21,15,33,9,-62,-41,-31,-70,-107,0,-34,0,-156,-127,-120,-84,-79,130,-29989,-1033,-882,-594,-570,-581,-707,-707,-700,-694,-654,-620,-642,-591]} 1. e4 {[%emt 0:00:02]} c6 {[%emt 0:00:26]} 2. d4 {[%emt 0:00:10]} d5 {[%emt 0:00:37]} 3. Nd2 {[%emt 0:00:08]} dxe4 {[%emt 0:00:23]} 4. Nxe4 {[%emt 0:00:14]} Nf6 {[%emt 0:00:37]} 5. Nxf6+ {[%emt 0:00:14]} gxf6 {[%emt 0:00:29]} 6. c3 {[%emt 0:00:27]} Bf5 {[%emt 0:00:22]} 7. Nf3 {[%emt 0:00:21][%cal Bg1f3,Bf3d2,Bd2e4,Be4c5][%mdl 32]} Nd7 {[%emt 0:00:42]} 8. g3 {[%emt 0:00:16]} Qa5 {[%emt 0:00:14]} 9. Qe2 {[%emt 0:00:26] B16: Caro-Kann: Bronstein-Larsen Variation.} Be6 {[%emt 0:25:23]} 10. Bg2 {[%emt 0:03:27]} Nb6 {[%emt 0:05:38]} 11. Nd2 {[%emt 0:11:49][%cal Oa2a4] [#] White is slightly better.} h5 $146 {[%emt 0:13:05][%cal Bh7h5,Bh5h4][%mdl 32]} ({Predecessor:} 11... O-O-O 12. a4 h5 13. b4 Qf5 14. Be4 Qh3 15. b5 Nd5 16. Bb2 Bd7 17. Nb3 f5 {1-0 (25) Delavekouras,S (2116)-Newton,H (1986) IECG email 1999}) 12. O-O {[%emt 0:10:19]} h4 {[%emt 0:04:14]} 13. Re1 {[%emt 0:08:01][%cal Oa2a4]} O-O-O {[%emt 0:06:04]} 14. Ne4 {[%emt 0:03:34]} Bc4 {[%emt 0:03:52]} 15. Qc2 {[%emt 0:05:32]} ({White should try} 15. Qf3 $11) 15... hxg3 $15 {[%emt 0:00:25]} 16. fxg3 {[%emt 0:01:13]} Qh5 $1 {[%emt 0:02:12]} (16... Rxd4 17. b4 Rxe4 18. Rxe4 $14 (18. bxa5 Rxe1+ 19. Kf2 Re2+ 20. Qxe2 Bxe2 $16)) 17. Bh1 {[%emt 0:02:49]} Rd5 {[%emt 0:04:57]} (17... f5 $17 18. Ng5 e6) 18. Nc5 {[%emt 0:09:55]} Rd8 {[%emt 0:04:43] ...e6 is the strong threat.} (18... e5 $5 {[%cal Re5d4]} 19. b3 (19. Bxd5 Bxd5 20. Ne4 Nd7 $15) 19... Bxc5 20. dxc5 (20. bxc4 $2 exd4 21. cxd4 Rxd4 $19) 20... Bd3 $11) 19. a4 $2 {[%emt 0:11:45] [#]} ({Better is} 19. Ne4 $1 $11) 19... e6 $1 $17 {[%emt 0:03:37]} 20. Ne4 {[%emt 0:05:25]} f5 $40 {[%emt 0:04:57][%mdl 128] Black wants a kill. Black is more active.} 21. Ng5 {[%emt 0:02:58]} e5 $2 {[%emt 0:04:43]} (21... Be7 $17 {keeps the pressure on.} 22. a5 (22. Bf3 Qg6 $15) 22... Nd5) 22. dxe5 $2 {[%emt 0:08:28][%mdl 8192] [#] Loses the game.} (22. Bf3 $16 Qg6 23. b3 (23. dxe5 Bc5+ 24. Kg2 Bd3 $17) (23. Rxe5 f6 $11)) 22... Bc5+ {[%emt 0:01:08]} (22... Rd2 $142 $3 {[%mdl 512]} 23. Qxd2 Bc5+ 24. Kg2 Qxh2+ 25. Kf3 Bd5+ 26. Kf4 Rh4+ 27. Kxf5 Be6+ 28. Nxe6 Qh3+ 29. Kf6 Qxe6+ 30. Kg7 Qg6#) 23. Be3 $19 {[%emt 0:02:50] Black is clearly winning.} Bxe3+ {[%emt 0:00:20][%mdl 64] Remove Defender} 24. Rxe3 {[%emt 0:00:19]} Qxg5 {[%emt 0:00:33]} 25. Rf3 {[%emt 0:00:28]} Rd2 {[%emt 0:06:33]} 26. Qxf5+ {[%emt 0:06:44]} Qxf5 {[%emt 0:00:07]} 27. Rxf5 {[%emt 0:00:08]} Rdxh2 {[%emt 0:00:18]} 28. Bf3 {[%emt 0:00:44]} Bd5 {[%emt 0:01:14] Weighted Error Value: White=0.62/Black=0.72} 0-1

[Event "Swiss Championship U14 2022"]
[Site "Biel"]
[Date "2022.07.20"]
[Round "6.7"]
[White "Stoll, Arturo"]
[Black "Guyer, Marlon"]
[Result "1/2-1/2"]
[ECO "C67"]
[WhiteElo "1434"]
[BlackElo "1590"]
[Annotator "NA COMBH"]
[PlyCount "193"]
[EventDate "2022.07.18"]
[EventType "swiss"]
[EventCountry "SUI"]
[SourceTitle "playchess.com"]
[Source "ChessBase"]
[SourceQuality "1"]
[TimeControl "5400+30"]

1. e4 {[%emt 0:00:10]} e5 {[%emt 0:00:05]} 2. Nf3 {[%emt 0:00:18]} Nc6 {[%emt 0:00:05]} 3. Bb5 {[%emt 0:00:33]} Nf6 {[%emt 0:00:11]} 4. O-O {[%emt 0:00:09]} Nxe4 {[%emt 0:00:03]} 5. d4 {[%emt 0:00:31]} Nd6 {[%emt 0:00:09]} 6. Bxc6 {[%emt 0:00:06]} dxc6 {[%emt 0:00:04]} 7. dxe5 {[%emt 0:00:01]} Nf5 {[%emt 0:00:04]} 8. Qxd8+ {[%emt 0:00:20]} Kxd8 {[%emt 0:00:03]} 9. Nc3 {[%emt 0:01:13]} Bd7 {[%emt 0:00:07]} 10. Bg5+ {[%emt 0:01:13]} Be7 {[%emt 0:00:19]} 11. Rad1 {[%emt 0:01:11]} Ke8 {[%emt 0:21:19]} 12. Ne4 {[%emt 0:02:55]} b6 {[%emt 0:16:36]} 13. Rd3 {[%emt 0:07:23]} Bxg5 {[%emt 0:03:04]} 14. Nfxg5 {[%emt 0:01:48]} Rd8 {[%emt 0:04:01]} 15. Rfd1 {[%emt 0:01:12]} Nh6 {[%emt 0:00:30]} 16. e6 {[%emt 0:02:41]} fxe6 {[%emt 0:03:24]} 17. Nxe6 {[%emt 0:00:57]} Ke7 {[%emt 0:01:03]} 18. Nxd8 {[%emt 0:00:25]} Rxd8 {[%emt 0:00:10]} 19. Ng5 {[%emt 0:03:32]} Nf5 {[%emt 0:02:23]} 20. Re1+ {[%emt 0:01:00]} Kf6 {[%emt 0:00:59]} 21. Nxh7+ {[%emt 0:00:25]} Kg6 {[%emt 0:00:31]} 22. Red1 Nd6 {[%emt 0:00:58]} 23. Re1 {[%emt 0:00:30]} Kxh7 {[%emt 0:02:00]} 24. Re7 {[%emt 0:02:14]} Kg8 {[%emt 0:06:54]} 25. h4 {[%emt 0:05:48]} Kf8 {[%emt 0:02:09]} 26. Re1 {[%emt 0:00:57]} Re8 {[%emt 0:05:22]} 27. Rf3+ {[%emt 0:00:34]} Kg8 {[%emt 0:01:50]} 28. Rxe8+ {[%emt 0:00:05]} Bxe8 {[%emt 0:00:17]} 29. Ra3 {[%emt 0:03:38]} a5 {[%emt 0:00:33]} 30. Re3 {[%emt 0:01:50]} Kf8 {[%emt 0:00:30]} 31. Re2 {[%emt 0:00:09]} Bf7 {[%emt 0:02:28]} 32. b3 {[%emt 0:01:50]} b5 {[%emt 0:02:18]} 33. Re5 {[%emt 0:03:01]} a4 {[%emt 0:03:19]} 34. bxa4 {[%emt 0:01:17]} bxa4 {[%emt 0:04:21]} 35. Ra5 {[%emt 0:00:28]} Bxa2 {[%emt 0:00:37]} 36. Rxa4 {[%emt 0:00:17]} Bb1 {[%emt 0:03:49]} 37. Ra7 {[%emt 0:00:56]} Bxc2 {[%emt 0:02:10]} 38. Rxc7 {[%emt 0:00:11]} Be4 {[%emt 0:00:43]} 39. f3 {[%emt 0:00:32]} Bd5 {[%emt 0:00:11]} 40. Kf2 {[%emt 0:00:12]} Ne8 {[%emt 0:01:12]} 41. Ra7 {[%emt 0:00:20]} Bb3 {[%emt 0:02:19]} 42. Ke3 {[%emt 0:00:32]} c5 {[%emt 0:00:59]} 43. Kd2 {[%emt 0:00:09]} Be6 {[%emt 0:01:48]} 44. Ke3 {[%emt 0:03:53]} c4 {[%emt 0:00:51]} 45. Kd4 {[%emt 0:01:00]} Bf7 {[%emt 0:01:47]} 46. g4 {[%emt 0:00:39]} g6 {[%emt 0:01:58]} 47. Ke5 {[%emt 0:00:52]} Kg8 {[%emt 0:03:01]} 48. f4 {[%emt 0:00:19]} Kg7 {[%emt 0:02:02]} 49. g5 {[%emt 0:00:53]} Kf8 {[%emt 0:01:04]} 50. h5 {[%emt 0:01:32]} gxh5 {[%emt 0:00:47]} 51. f5 {[%emt 0:00:01]} h4 {[%emt 0:00:56]} 52. g6 {[%emt 0:00:07]} Bg8 {[%emt 0:01:16]} 53. f6 {[%emt 0:00:06]} h3 {[%emt 0:00:39]} 54. g7+ {[%emt 0:00:06]} Nxg7 {[%emt 0:00:04]} 55. fxg7+ {[%emt 0:00:05]} Ke8 {[%emt 0:00:09]} 56. Kd4 {[%emt 0:00:41]} h2 {[%emt 0:00:21]} 57. Ra1 {[%emt 0:00:03]} Kf7 {[%emt 0:00:36]} 58. Rh1 {[%emt 0:00:09]} Kxg7 {[%emt 0:00:05]} 59. Rxh2 {[%emt 0:00:01]} Kf8 {[%emt 0:00:36]} 60. Rh6 {[%emt 0:00:42]} Kg7 {[%emt 0:00:21]} 61. Ra6 {[%emt 0:00:09]} Kh7 {[%emt 0:00:24]} 62. Ke5 {[%emt 0:00:09]} Kh8 {[%emt 0:01:13]} 63. Ra7 {[%emt 0:00:36]} Bh7 {[%emt 0:00:32]} 64. Rc7 {[%emt 0:00:14]} Bg8 {[%emt 0:00:35]} 65. Kf6 {[%emt 0:00:34]} Bh7 {[%emt 0:00:48]} 66. Kg5 {[%emt 0:00:57]} c3 {[%emt 0:01:01]} 67. Kh6 {[%emt 0:00:37]} Bg8 {[%emt 0:03:25]} 68. Rc8 {[%emt 0:04:19]} c2 {[%emt 0:00:00]} 69. Kg6 {[%emt 0:00:20]} c1=Q {[%emt 0:00:00]} 70. Rxc1 {[%emt 0:00:03]} Bh7+ {[%emt 0:00:00]} 71. Kf7 {[%emt 0:00:05]} Bg8+ {[%emt 0:00:00]} 72. Kf8 {[%emt 0:00:04]} Bh7 {[%emt 0:00:24]} 73. Rc8 {[%emt 0:00:18]} Bf5 {[%emt 0:00:00]} 74. Rd8 {[%emt 0:00:16]} Kh7 {[%emt 0:00:00]} 75. Kf7 {[%emt 0:00:05]} Bg6+ {[%emt 0:00:00]} 76. Kf6 {[%emt 0:00:06]} Bb1 {[%emt 0:00:43]} 77. Rb8 {[%emt 0:00:30]} Bd3 {[%emt 0:00:24]} 78. Kf7 {[%emt 0:00:08]} Bg6+ {[%emt 0:01:02]} 79. Kf6 {[%emt 0:01:40]} Be4 {[%emt 0:00:00]} 80. Re8 {[%emt 0:00:11]} Bb1 {[%emt 0:00:20]} 81. Re7+ {[%emt 0:00:06]} Kh8 {[%emt 0:00:30]} 82. Rg7 {[%emt 0:00:31]} Bc2 {[%emt 0:00:27]} 83. Kf7 {[%emt 0:00:11]} Bb3+ {[%emt 0:00:22]} 84. Kf8 {[%emt 0:00:01]} Bc4 {[%emt 0:00:46]} 85. Rg3 {[%emt 0:01:01]} Be6 {[%emt 0:00:42]} 86. Rg5 {[%emt 0:00:00]} Kh7 {[%emt 0:00:25]} 87. Rh5+ {[%emt 0:01:09]} Kg6 {[%emt 0:00:07]} 88. Rh1 {[%emt 0:00:59]} Bf5 {[%emt 0:00:42]} 89. Ke7 {[%emt 0:00:34]} Kg7 {[%emt 0:00:28]} 90. Kd6 {[%emt 0:00:10]} Bh7 {[%emt 0:00:18]} 91. Ke7 {[%emt 0:00:47]} Kh8 {[%emt 0:00:23]} 92. Rg1 {[%emt 0:00:10]} Be4 {[%emt 0:00:32]} 93. Rg4 {[%emt 0:00:33]} Bf5 {[%emt 0:00:41]} 94. Rg5 {[%emt 0:00:15]} Bh7 {[%emt 0:00:28]} 95. Kf7 {[%emt 0:00:09]} Bd3 {[%emt 0:00:23]} 96. Re5 {[%emt 0:01:10]} Bc4+ {[%emt 0:00:46]} 97. Kg6 {[%emt 0:00:20]} 1/2-1/2

[Event "Swiss Championship U14 2022"]
[Site "Biel"]
[Date "2022.07.20"]
[Round "6.8"]
[White "Breyer, Thierry"]
[Black "Gade, Niels Severin"]
[Result "1-0"]
[ECO "B90"]
[WhiteElo "1683"]
[BlackElo "1505"]
[Annotator "NA COMBH"]
[PlyCount "123"]
[EventDate "2022.07.18"]
[EventType "swiss"]
[EventCountry "SUI"]
[SourceTitle "playchess.com"]
[Source "ChessBase"]
[SourceQuality "1"]
[TimeControl "5400+30"]

1. e4 {[%emt 0:00:45]} c5 {[%emt 0:00:07]} 2. Nf3 {[%emt 0:00:07]} d6 {[%emt 0:00:02]} 3. d4 {[%emt 0:00:07]} cxd4 {[%emt 0:00:05]} 4. Nxd4 {[%emt 0:00:08]} Nf6 {[%emt 0:00:06]} 5. Nc3 {[%emt 0:00:08]} a6 {[%emt 0:00:03]} 6. h3 {[%emt 0:00:16]} e5 {[%emt 0:01:59]} 7. Nb3 {[%emt 0:00:10]} Be6 {[%emt 0:00:41]} 8. f4 {[%emt 0:00:11]} exf4 {[%emt 0:01:19]} 9. Bxf4 {[%emt 0:00:20]} Nbd7 {[%emt 0:03:59]} 10. Qe2 {[%emt 0:01:07]} g6 {[%emt 0:03:45]} 11. O-O-O {[%emt 0:12:16]} Nh5 {[%emt 0:01:18]} 12. Nd5 {[%emt 0:19:45]} Nxf4 {[%emt 0:02:41]} 13. Nxf4 {[%emt 0:00:15]} Bh6 {[%emt 0:00:34]} 14. g3 {[%emt 0:00:29]} Ne5 {[%emt 0:06:39]} 15. Kb1 {[%emt 0:01:19]} Bc4 {[%emt 0:04:59]} 16. Qd2 {[%emt 0:04:06]} Bxf1 {[%emt 0:04:30]} 17. Rhxf1 {[%emt 0:01:26]} Nc4 {[%emt 0:02:09]} 18. Qd4 {[%emt 0:02:07]} Ne5 {[%emt 0:02:59]} 19. Qxd6 {[%emt 0:03:04]} Qxd6 {[%emt 0:00:21]} 20. Rxd6 {[%emt 0:00:22]} O-O {[%emt 0:04:09]} 21. Rb6 {[%emt 0:07:13]} Rab8 {[%emt 0:00:00]} 22. Na5 {[%emt 0:00:43]} Bg7 {[%emt 0:06:42]} 23. b3 {[%emt 0:04:46]} Nd7 {[%emt 0:06:36]} 24. Rxb7 {[%emt 0:08:15]} Nc5 {[%emt 0:00:00]} 25. Rxb8 {[%emt 0:00:49]} Rxb8 {[%emt 0:05:34]} 26. e5 {[%emt 0:05:28]} Bxe5 {[%emt 0:00:00]} 27. Nc6 {[%emt 0:01:41]} Bxf4 {[%emt 0:00:00]} 28. Rxf4 {[%emt 0:02:01]} Re8 {[%emt 0:04:34]} 29. Nb4 {[%emt 0:00:16]} Re3 {[%emt 0:00:00]} 30. Rc4 {[%emt 0:00:40]} a5 {[%emt 0:00:00]} 31. Nd5 {[%emt 0:03:56]} Re1+ {[%emt 0:00:00]} 32. Kb2 {[%emt 0:00:13]} Ne6 {[%emt 0:02:00]} 33. Nf4 {[%emt 0:01:24]} Nxf4 {[%emt 0:02:53]} 34. Rxf4 {[%emt 0:01:23]} Re3 {[%emt 0:02:32]} 35. c4 {[%emt 0:00:45]} Rxg3 {[%emt 0:00:15]} 36. c5 {[%emt 0:00:24]} Kf8 {[%emt 0:02:45]} 37. c6 {[%emt 0:04:33]} Ke8 {[%emt 0:06:00]} 38. h4 {[%emt 0:02:47]} Kd8 {[%emt 0:00:00]} 39. Rxf7 {[%emt 0:02:41]} h5 {[%emt 0:02:30]} 40. Rg7 {[%emt 0:01:29]} Rg4 {[%emt 0:03:26]} 41. a3 {[%emt 0:01:35]} Rxh4 {[%emt 0:00:00]} 42. Rxg6 {[%emt 0:00:13]} Kc7 {[%emt 0:01:47]} 43. Rh6 {[%emt 0:01:01]} Rh3 {[%emt 0:01:01]} 44. Rg6 {[%emt 0:00:38]} h4 {[%emt 0:00:16]} 45. Rg5 {[%emt 0:00:17]} Kxc6 {[%emt 0:00:38]} 46. Rxa5 {[%emt 0:00:26]} Rg3 {[%emt 0:00:20]} 47. Rh5 {[%emt 0:00:22]} h3 {[%emt 0:01:18]} 48. b4 {[%emt 0:00:26]} Rg2+ {[%emt 0:00:07]} 49. Kb3 {[%emt 0:05:08]} h2 {[%emt 0:00:00]} 50. Ka4 {[%emt 0:00:51]} Kb6 {[%emt 0:00:00]} 51. Rh6+ {[%emt 0:00:24]} Kb7 {[%emt 0:00:00]} 52. Ka5 {[%emt 0:01:01]} Ra2 {[%emt 0:00:43]} 53. a4 {[%emt 0:00:15]} Rg2 {[%emt 0:01:48]} 54. Rh7+ {[%emt 0:02:37]} Kc6 {[%emt 0:02:19]} 55. b5+ {[%emt 0:00:19]} Kc5 {[%emt 0:00:30]} 56. Rh5+ {[%emt 0:00:21]} Kd6 {[%emt 0:00:39]} 57. Ka6 {[%emt 0:00:33]} Ra2 {[%emt 0:00:42]} 58. a5 {[%emt 0:00:16]} Kc7 {[%emt 0:00:35]} 59. Rh7+ {[%emt 0:00:59]} Kd6 {[%emt 0:00:43]} 60. b6 {[%emt 0:00:59]} Kc6 {[%emt 0:00:52]} 61. b7 {[%emt 0:00:53]} Rb2 {[%emt 0:00:30]} 62. Rxh2 {[%emt 0:03:12]} 1-0